fUSD/lending_fUSD_20240627
["ID","MTS","AMOUNT","RATE_DAILY","PERIOD"]
[330478279,1719470843221,-500.0,0.00045205,120]
[330478280,1719470843258,-500.0,0.00045205,120]
[330478281,1719470843294,-500.0,0.00045205,120]
[330478282,1719470843331,-500.0,0.00045205,120]
[330478283,1719470843368,-1273.36,0.00045205,120]
[330478284,1719470843403,-500.0,0.00045205,120]
[330478285,1719470843445,-591.6,0.00045205,120]
[330478286,1719470843488,-11245.17,0.00045205,120]
[330478287,1719470843529,-500.0,0.00045205,120]
[330478288,1719470843568,-500.0,0.00045205,120]
[330478289,1719470843609,-500.0,0.00045205,120]
[330478290,1719470843650,-500.0,0.00045205,120]
[330478291,1719470843690,-500.0,0.00045205,120]
[330478292,1719470843728,-500.0,0.00045205,120]
[330478293,1719470843769,-1337.87,0.00045205,120]
[330478294,1719470843808,-637.26,0.00045205,120]
[330478295,1719470843850,-500.0,0.00045205,120]
[330478296,1719470843889,-500.0,0.00045205,120]
[330478297,1719470843931,-500.0,0.00045205,120]
[330478298,1719470843970,-500.0,0.00045205,120]
[330478299,1719470844010,-502.69,0.00045205,120]
[330478300,1719470844045,-500.0,0.00045205,120]
[330478301,1719470844082,-725.24,0.00045205,120]
[330478302,1719470844118,-500.0,0.00045205,120]
[330478303,1719470844154,-500.0,0.00045205,120]
[330478304,1719470844191,-1308.09,0.00045205,120]
[330478305,1719470844229,-500.0,0.00045205,120]
[330478306,1719470844267,-500.0,0.00045205,120]
[330478307,1719470844305,-500.0,0.00045205,120]
[330478308,1719470844345,-500.0,0.00045205,120]
[330478309,1719470844387,-718.58,0.00045205,120]
[330478310,1719470844427,-500.0,0.00045205,120]
[330478311,1719470844464,-946.37,0.00045205,120]
[330478312,1719470844501,-526.3968902,0.00045205,120]
[330478313,1719470844536,-500.0,0.00045205,120]
[330478314,1719470844573,-500.0,0.00045205,120]
[330478315,1719470844612,-500.0,0.00045205,120]
[330478316,1719470844650,-500.0,0.00045205,120]
[330478317,1719470844698,-500.0,0.00045205,120]
[330478318,1719470844745,-510.72584999,0.00045205,120]
[330478319,1719470844781,-500.0,0.00045205,120]
[330478320,1719470844817,-500.0,0.00045205,120]
[330478321,1719470844852,-757.03,0.00045205,120]
[330478322,1719470844887,-500.0,0.00045205,120]
[330478323,1719470844925,-500.0,0.00045205,120]
[330478324,1719470844961,-500.0,0.00045205,120]
[330478325,1719470845000,-1278.0,0.00045205,120]
[330478326,1719470845037,-549.18,0.00045205,120]
[330478327,1719470845073,-566.01,0.00045205,120]
[330478328,1719470845109,-500.0,0.00045205,120]
[330478329,1719470845147,-500.0,0.00045205,120]
[330478330,1719470845183,-500.0,0.00045205,120]
[330478331,1719470845221,-500.0,0.00045205,120]
[330478332,1719470845258,-1533.08,0.00045205,120]
[330478333,1719470845296,-2331.46,0.00045205,120]
[330478334,1719470845333,-500.0,0.00045205,120]
[330478335,1719470845374,-500.0,0.00045205,120]
[330478336,1719470845411,-500.0,0.00045205,120]
[330478337,1719470845452,-1927.68,0.00045205,120]
[330478338,1719470845491,-500.0,0.00045205,120]
[330478339,1719470845530,-27172.75,0.00045205,120]
[330478340,1719470845569,-26040.55,0.00045205,120]
[330478341,1719470845608,-500.0,0.00045205,120]
[330478342,1719470845644,-500.0,0.00045205,120]
[330478343,1719470845683,-500.0,0.00045205,120]
[330478344,1719470845797,-500.0,0.00045205,120]
[330478345,1719470845836,-500.0,0.00045205,120]
[330478346,1719470845874,-500.0,0.00045205,120]
[330478347,1719470845912,-564.38593181,0.00045205,120]
[330478348,1719470845949,-500.0,0.00045205,120]
[330478349,1719470845988,-500.0,0.00045205,120]
[330478350,1719470846024,-500.0,0.00045205,120]
[330478351,1719470846062,-500.0,0.00045205,120]
[330478352,1719470846099,-500.0,0.00045205,120]
[330478353,1719470846136,-500.0,0.00045205,120]
[330478354,1719470846174,-586.27,0.00045205,120]
[330478355,1719470846211,-500.0,0.00045205,120]
[330478356,1719470846250,-671.6,0.00045205,120]
[330478357,1719470846287,-500.0,0.00045205,120]
[330478358,1719470846322,-1323.97,0.00045205,120]
[330478359,1719470846360,-500.0,0.00045205,120]
[330478360,1719470846399,-687.5,0.00045205,120]
[330478361,1719470846434,-500.0,0.00045205,120]
[330478362,1719470846470,-500.0,0.00045205,120]
[330478363,1719470846506,-516.64,0.00045205,120]
[330478364,1719470846542,-500.0,0.00045205,120]
[330478365,1719470846576,-500.0,0.00045205,120]
[330478366,1719470846612,-784.71,0.00045205,120]
[330478367,1719470846647,-564.87,0.00045205,120]
[330478368,1719470846682,-500.0,0.00045205,120]
[330478369,1719470846716,-500.0,0.00045205,120]
[330478370,1719470846752,-500.0,0.00045205,120]
[330478371,1719470846787,-500.0,0.00045205,120]
[330478372,1719470846822,-500.0,0.00045205,120]
[330478373,1719470846858,-500.0,0.00045205,120]
[330478374,1719470846894,-500.0,0.00045205,120]
[330478375,1719470846930,-542.11,0.00045205,120]
[330478376,1719470846964,-500.0,0.00045205,120]
[330478377,1719470846998,-500.0,0.00045205,120]
[330478378,1719470847033,-500.0,0.00045205,120]
[330478379,1719470847069,-500.0,0.00045205,120]
[330478380,1719470847103,-500.0,0.00045205,120]
[330478381,1719470847139,-1797.8,0.00045205,120]
[330478382,1719470847178,-829.66,0.00045205,120]
[330478383,1719470847213,-1396.29,0.00045205,120]
[330478384,1719470847249,-500.0,0.00045205,120]
[330478385,1719470847285,-782.33,0.00045205,120]
[330478386,1719470847320,-500.0,0.00045205,120]
[330478387,1719470847358,-784.1,0.00045205,120]
[330478388,1719470847395,-754.87,0.00045205,120]
[330478389,1719470847433,-500.0,0.00045205,120]
[330478390,1719470847470,-500.0,0.00045205,120]
[330478391,1719470847506,-500.0,0.00045205,120]
[330478392,1719470847542,-500.0,0.00045205,120]
[330478393,1719470847579,-500.57,0.00045205,120]
[330478394,1719470847618,-500.0,0.00045205,120]
[330478395,1719470847657,-500.0,0.00045205,120]
[330478396,1719470847693,-1600.16,0.00045205,120]
[330478397,1719470847730,-500.0,0.00045205,120]
[330478398,1719470847768,-500.0,0.00045205,120]
[330478399,1719470847805,-500.0,0.00045205,120]
[330478400,1719470847846,-500.0,0.00045205,120]
[330478401,1719470847885,-500.0,0.00045205,120]
[330478402,1719470847922,-561.17,0.00045205,120]
[330478403,1719470847962,-1509.02,0.00045205,120]
[330478404,1719470848001,-500.0,0.00045205,120]
[330478405,1719470848039,-2361.82,0.00045205,120]
[330478406,1719470848079,-500.0,0.00045205,120]
[330478407,1719470848116,-1563.42,0.00045205,120]
[330478408,1719470848156,-500.0,0.00045205,120]
[330478409,1719470848192,-500.0,0.00045205,120]
[330478410,1719470848229,-1273.2,0.00045205,120]
[330478411,1719470848267,-856.57,0.00045205,120]
[330478412,1719470848304,-500.0,0.00045205,120]
[330478413,1719470848342,-754.02,0.00045205,120]
[330478414,1719470848386,-532.67,0.00045205,120]
[330478415,1719470848428,-782.31,0.00045205,120]
[330478416,1719470848468,-506.16628898,0.00045205,120]
[330478417,1719470848507,-500.0,0.00045205,120]
[330478418,1719470848547,-500.0,0.00045205,120]
[330478419,1719470848589,-687.18,0.00045205,120]
[330478420,1719470848628,-4687.31,0.00045205,120]
[330478421,1719470848668,-585.64549331,0.00045205,120]
[330478422,1719470848706,-500.0,0.00045205,120]
[330478423,1719470848743,-780.27,0.00045205,120]
[330478424,1719470848782,-500.0,0.00045205,120]
[330478425,1719470848820,-529.25,0.00045205,120]
[330478426,1719470848859,-500.0,0.00045205,120]
[330478427,1719470848897,-1044.52,0.00045205,120]
[330478428,1719470848935,-500.0,0.00045205,120]
[330478429,1719470848974,-1151.75,0.00045205,120]
[330478430,1719470849010,-520.35,0.00045205,120]
[330478431,1719470849047,-2501.01,0.00045205,120]
[330478432,1719470849086,-986.4,0.00045205,120]
[330478433,1719470849127,-500.26,0.00045205,120]
[330478434,1719470849166,-500.0,0.00045205,120]
[330478435,1719470849204,-1046.1,0.00045205,120]
[330478436,1719470849240,-1541.75,0.00045205,120]
[330478437,1719470849279,-3067.76,0.00045205,120]
[330478438,1719470849316,-1871.0,0.00045205,120]
[330478439,1719470849355,-500.0,0.00045205,120]
[330478440,1719470849393,-500.0,0.00045205,120]
[330478441,1719470849434,-576.51,0.00045205,120]
[330478442,1719470849474,-500.0,0.00045205,120]
[330478443,1719470849512,-521.51468116,0.00045205,120]
[330478444,1719470849549,-1304.5,0.00045205,120]
[330478445,1719470849588,-1003.17,0.00045205,120]
[330478446,1719470849625,-500.0,0.00045205,120]
[330478447,1719470849662,-879.02,0.00045205,120]
[330478448,1719470849811,-721.95,0.00045205,120]
[330478449,1719470849860,-500.0,0.00045205,120]
[330478450,1719470849898,-574.06,0.00045205,120]
[330478451,1719470849936,-500.0,0.00045205,120]
[330478452,1719470849974,-500.0,0.00045205,120]
[330478453,1719470850011,-2226.61,0.00045205,120]
[330478454,1719470850054,-2501.35,0.00045205,120]
[330478455,1719470850091,-834.19,0.00045205,120]
[330478456,1719470850128,-951.42,0.00045205,120]
[330478457,1719470850164,-500.0,0.00045205,120]
[330478458,1719470850200,-500.0,0.00045205,120]
[330478459,1719470850236,-500.0,0.00045205,120]
[330478460,1719470850274,-500.0,0.00045205,120]
[330478461,1719470850311,-500.0,0.00045205,120]
[330478462,1719470850353,-2501.31,0.00045205,120]
[330478463,1719470850392,-2615.24,0.00045205,120]
[330478464,1719470850430,-500.0,0.00045205,120]
[330478465,1719470850467,-500.0,0.00045205,120]
[330478466,1719470850505,-1566.08,0.00045205,120]
[330478467,1719470850542,-535.43074353,0.00045205,120]
[330478468,1719470850579,-1063.16,0.00045205,120]
[330478469,1719470850615,-1538.18,0.00045205,120]
[330478470,1719470850654,-548.81,0.00045205,120]
[330478471,1719470850692,-500.0,0.00045205,120]
[330478472,1719470850728,-500.0,0.00045205,120]
[330478473,1719470850765,-500.0,0.00045205,120]
[330478474,1719470850802,-500.0,0.00045205,120]
[330478475,1719470850838,-2319.49,0.00045205,120]
[330478476,1719470850875,-1643.89,0.00045205,120]
[330478477,1719470850913,-500.0,0.00045205,120]
[330478478,1719470850950,-478.77647032,0.00045205,120]
[330478479,1719470850986,-2222.84,0.00045205,120]
[330478480,1719470851022,-727.31,0.00045205,120]
[330478481,1719470851057,-2049.55,0.00045205,120]
[330478482,1719470851094,-2335.18,0.00045205,120]
[330478483,1719470851130,-792.45,0.00045205,120]
[330478484,1719470851167,-551.03884651,0.00045205,120]
[330478485,1719470851207,-747.69,0.00045205,120]
[330478486,1719470851242,-997.67,0.00045205,120]
[330478487,1719470851280,-565.2,0.00045205,120]
[330478488,1719470851316,-500.0,0.00045205,120]
[330478489,1719470851354,-500.0,0.00045205,120]
[330478490,1719470851389,-1048.58,0.00045205,120]
[330478491,1719470851431,-581.97,0.00045205,120]
[330478492,1719470851467,-543.02,0.00045205,120]
[330478493,1719470851502,-500.0,0.00045205,120]
[330478494,1719470851537,-500.0,0.00045205,120]
[330478495,1719470851574,-500.0,0.00045205,120]
[330478496,1719470851610,-549.78783158,0.00045205,120]
[330478497,1719470851645,-1840.86,0.00045205,120]
[330478498,1719470851681,-1367.68,0.00045205,120]
[330478499,1719470851716,-500.0,0.00045205,120]
[330478500,1719470851750,-846.38,0.00045205,120]
[330478501,1719470851785,-1518.38,0.00045205,120]
[330478502,1719470851819,-1190.23,0.00045205,120]
[330478503,1719470851854,-1232.26,0.00045205,120]
[330478504,1719470851888,-500.0,0.00045205,120]
[330478505,1719470851925,-1670.85,0.00045205,120]
[330478506,1719470851961,-500.0,0.00045205,120]
[330478507,1719470851996,-500.0,0.00045205,120]
[330478508,1719470852031,-500.0,0.00045205,120]
[330478509,1719470852069,-2921.04,0.00045205,120]
[330478510,1719470852107,-738.36,0.00045205,120]
[330478511,1719470852142,-500.0,0.00045205,120]
[330478512,1719470852177,-609.6,0.00045205,120]
[330478513,1719470852214,-1022.95,0.00045205,120]
[330478514,1719470852250,-500.0,0.00045205,120]
[330478515,1719470852289,-500.0,0.00045205,120]
[330478516,1719470852325,-2298.25,0.00045205,120]
[330478517,1719470852361,-500.0,0.00045205,120]
[330478518,1719470852396,-1715.04,0.00045205,120]
[330478519,1719470852436,-500.0,0.00045205,120]
[330478520,1719470852475,-5051.87,0.00045205,120]
[330478521,1719470852513,-552.27,0.00045205,120]
[330478522,1719470852548,-500.0,0.00045205,120]
[330478523,1719470852583,-500.0,0.00045205,120]
[330478524,1719470852618,-500.0,0.00045205,120]
[330478525,1719470852653,-649.75475367,0.00045205,120]
[330478526,1719470852686,-421.35706367,0.00045205,120]
[330478527,1719470852719,-1084.3,0.00045205,120]
[330478528,1719470852754,-500.0,0.00045205,120]
[330478529,1719470852789,-500.0,0.00045205,120]
[330478530,1719470852826,-500.0,0.00045205,120]
[330478531,1719470852862,-563.99,0.00045205,120]
[330478532,1719470852896,-500.0,0.00045205,120]
[330478533,1719470852931,-500.0,0.00045205,120]
[330478534,1719470852965,-500.0,0.00045205,120]
[330478535,1719470852999,-725.04,0.00045205,120]
[330478536,1719470853035,-500.0,0.00045205,120]
[330478537,1719470853075,-2049.92,0.00045205,120]
[330478538,1719470853391,-500.0,0.00045205,120]
[330478539,1719470853430,-500.0,0.00045205,120]
[330478540,1719470853472,-718.17,0.00045205,120]
[330478541,1719470853513,-1276.49,0.00045205,120]
[330478542,1719470853552,-500.0,0.00045205,120]
[330478543,1719470853591,-522.15,0.00045205,120]
[330478544,1719470853629,-1268.37,0.00045205,120]
[330478545,1719470853668,-500.0,0.00045205,120]
[330478546,1719470853707,-1526.45,0.00045205,120]
[330478547,1719470853747,-500.0,0.00045205,120]
[330478548,1719470853786,-500.0,0.00045205,120]
[330478549,1719470853825,-4324.46,0.00045205,120]
[330478550,1719470853864,-500.0,0.00045205,120]
[330478551,1719470853904,-699.36,0.00045205,120]
[330478552,1719470853944,-500.0,0.00045205,120]
[330478553,1719470853983,-696.16,0.00045205,120]
[330478554,1719470854025,-1864.6,0.00045205,120]
[330478555,1719470854064,-2187.6,0.00045205,120]
[330478556,1719470854100,-500.0,0.00045205,120]
[330478557,1719470854138,-1496.44,0.00045205,120]
[330478558,1719470854175,-500.0,0.00045205,120]
[330478559,1719470854212,-500.0,0.00045205,120]
[330478560,1719470854248,-500.0,0.00045205,120]
[330478561,1719470854286,-500.0,0.00045205,120]
[330478562,1719470854322,-500.0,0.00045205,120]
[330478563,1719470854361,-606.91,0.00045205,120]
[330478564,1719470854398,-656.81,0.00045205,120]
[330478565,1719470854436,-4053.69,0.00045205,120]
[330478566,1719470854472,-1623.32,0.00045205,120]
[330478567,1719470854508,-500.0,0.00045205,120]
[330478568,1719470854543,-654.85,0.00045205,120]
[330478569,1719470854580,-1297.57,0.00045205,120]
[330478570,1719470854616,-552.9,0.00045205,120]
[330478571,1719470854652,-1423.34,0.00045205,120]
[330478572,1719470854687,-1928.61,0.00045205,120]
[330478573,1719470854723,-1548.18,0.00045205,120]
[330478574,1719470854758,-797.49,0.00045205,120]
[330478575,1719470854793,-500.0,0.00045205,120]
[330478576,1719470854829,-1130.37,0.00045205,120]
[330478577,1719470854866,-500.0,0.00045205,120]
[330478578,1719470854903,-504.28,0.00045205,120]
[330478579,1719470854939,-1267.08,0.00045205,120]
[330478580,1719470854975,-1862.28,0.00045205,120]
[330478581,1719470855011,-500.0,0.00045205,120]
[330478582,1719470855047,-320.46958812,0.00045205,120]
[330478583,1719470855083,-500.0,0.00045205,120]
[330478584,1719470855120,-560.09,0.00045205,120]
[330478585,1719470855158,-500.0,0.00045205,120]
[330478586,1719470855195,-3128.17,0.00045205,120]
[330478587,1719470855232,-500.0,0.00045205,120]
[330478588,1719470855269,-851.58,0.00045205,120]
[330478589,1719470855307,-766.04,0.00045205,120]
[330478590,1719470855344,-500.0,0.00045205,120]
[330478591,1719470855387,-500.0,0.00045205,120]
[330478592,1719470855427,-507.85,0.00045205,120]
[330478593,1719470855466,-798.94,0.00045205,120]
[330478594,1719470855504,-1773.55,0.00045205,120]
[330478595,1719470855548,-500.0,0.00045205,120]
[330478596,1719470855591,-1353.25,0.00045205,120]
[330478597,1719470855631,-245.55381169,0.00045205,120]
[330478598,1719470855670,-500.0,0.00045205,120]
[330478599,1719470855710,-500.0,0.00045205,120]
[330478600,1719470855749,-1674.58,0.00045205,120]
[330478601,1719470855789,-500.0,0.00045205,120]
[330478602,1719470855828,-500.0,0.00045205,120]
[330478603,1719470855866,-651.37,0.00045205,120]
[330478604,1719470855903,-655.48,0.00045205,120]
[330478605,1719470855942,-3049.52,0.00045205,120]
[330478606,1719470855982,-592.0,0.00045205,120]
[330478607,1719470856018,-500.0,0.00045205,120]
[330478608,1719470856057,-858.84,0.00045205,120]
[330478609,1719470856097,-787.74,0.00045205,120]
[330478610,1719470856260,-3098.43,0.00045205,120]
[330478611,1719470856301,-500.0,0.00045205,120]
[330478612,1719470856342,-500.0,0.00045205,120]
[330478613,1719470856392,-3145.75,0.00045205,120]
[330478614,1719470856432,-3659.1,0.00045205,120]
[330478615,1719470856473,-500.0,0.00045205,120]
[330478616,1719470856511,-746.47,0.00045205,120]
[330478617,1719470856550,-500.0,0.00045205,120]
[330478618,1719470856590,-1341.57,0.00045205,120]
[330478619,1719470856630,-500.0,0.00045205,120]
[330478620,1719470856669,-934.72,0.00045205,120]
[330478621,1719470856707,-500.0,0.00045205,120]
[330478622,1719470856745,-898.43,0.00045205,120]
[330478623,1719470856784,-1650.24,0.00045205,120]
[330478624,1719470856821,-5133.18,0.00045205,120]
[330478625,1719470856861,-706.58,0.00045205,120]
[330478626,1719470856899,-697.55,0.00045205,120]
[330478627,1719470856937,-1378.4,0.00045205,120]
[330478628,1719470856975,-500.0,0.00045205,120]
[330478629,1719470857012,-500.0,0.00045205,120]
[330478630,1719470857048,-2690.47,0.00045205,120]
[330478631,1719470857087,-500.0,0.00045205,120]
[330478632,1719470857125,-3275.62,0.00045205,120]
[330478633,1719470857164,-2226.22,0.00045205,120]
[330478634,1719470857201,-2016.9,0.00045205,120]
[330478635,1719470857238,-546.26,0.00045205,120]
[330478636,1719470857274,-717.57,0.00045205,120]
[330478637,1719470857310,-1240.27,0.00045205,120]
[330478638,1719470857350,-507.03100128,0.00045205,120]
[330478639,1719470857386,-500.0,0.00045205,120]
[330478640,1719470857423,-2456.48,0.00045205,120]
[330478641,1719470857462,-3001.87,0.00045205,120]
[330478642,1719470857498,-500.0,0.00045205,120]
[330478643,1719470857534,-500.0,0.00045205,120]
[330478644,1719470857572,-2001.44,0.00045205,120]
[330478645,1719470857609,-500.0,0.00045205,120]
[330478646,1719470857646,-909.02,0.00045205,120]
[330478647,1719470857682,-705.33,0.00045205,120]
[330478648,1719470857720,-1404.89,0.00045205,120]
[330478649,1719470857756,-500.0,0.00045205,120]
[330478650,1719470857792,-2111.06,0.00045205,120]
[330478651,1719470857830,-1426.03,0.00045205,120]
[330478652,1719470857867,-500.0,0.00045205,90]
[330478653,1719470857907,-448.42028593,0.00045205,120]
[330478654,1719470857943,-2623.33,0.00045205,120]
[330478655,1719470857980,-766.33,0.00045205,120]
[330478656,1719470858016,-1138.14,0.00045205,120]
[330478657,1719470858052,-1265.29,0.00045205,120]
[330478658,1719470858088,-514.81,0.00045205,120]
[330478659,1719470858127,-1666.66,0.00045205,120]
[330478660,1719470858164,-581.92,0.00045205,120]
[330478661,1719470858200,-500.0,0.00045205,120]
[330478662,1719470858235,-1004.76,0.00045205,120]
[330478663,1719470858271,-500.0,0.00045205,120]
[330478664,1719470858308,-500.0,0.00045205,120]
[330478665,1719470858349,-500.0,0.00045205,120]
[330478666,1719470858387,-2680.71,0.00045205,120]
[330478667,1719470858428,-500.0,0.00045205,120]
[330478668,1719470858469,-930.25,0.00045205,120]
[330478669,1719470858509,-1479.68,0.00045205,120]
[330478670,1719470858551,-3064.68,0.00045205,120]
[330478671,1719470858592,-453.61252409,0.00045205,120]
[330478672,1719470858631,-500.0,0.00045205,120]
[330478673,1719470858672,-551.43377162,0.00045205,120]
[330478674,1719470858711,-500.0,0.00045205,120]
[330478675,1719470858752,-2451.34,0.00045205,120]
[330478676,1719470858791,-500.0,0.00045205,120]
[330478677,1719470858832,-2023.42,0.00045205,120]
[330478678,1719470858872,-500.0,0.00045205,120]
[330478679,1719470858913,-500.0,0.00045205,120]
[330478680,1719470858953,-500.0,0.00045205,120]
[330478681,1719470858994,-2616.18,0.00045205,120]
[330478682,1719470859033,-978.8,0.00045205,120]
[330478683,1719470859072,-500.0,0.00045205,120]
[330478684,1719470859113,-2291.15,0.00045205,120]
[330478685,1719470859155,-500.0,0.00045205,120]
[330478686,1719470859194,-672.7,0.00045205,120]
[330478687,1719470859233,-2364.1,0.00045205,120]
[330478688,1719470859274,-2611.74,0.00045205,120]
[330478689,1719470859320,-500.0,0.00045205,120]
[330478690,1719470859361,-500.0,0.00045205,120]
[330478691,1719470859414,-1036.84,0.00045205,120]
[330478692,1719470859459,-500.0,0.00045205,120]
[330478693,1719470859497,-500.0,0.00045205,120]
[330478694,1719470859536,-701.12,0.00045205,120]
[330478695,1719470859577,-2135.13,0.00045205,120]
[330478696,1719470859617,-2560.25,0.00045205,120]
[330478697,1719470859658,-500.0,0.00045205,120]
[330478698,1719470859699,-500.0,0.00045205,120]
[330478699,1719470859739,-500.0,0.00045205,120]
[330478700,1719470859777,-808.79,0.00045205,120]
[330478701,1719470859817,-590.89,0.00045205,120]
[330478702,1719470859856,-500.0,0.00045205,120]
[330478703,1719470859897,-500.0,0.00045205,120]
[330478704,1719470859937,-500.0,0.00045205,120]
[330478705,1719470859976,-1448.59,0.00045205,120]
[330478706,1719470860017,-4167.28,0.00045205,120]
[330478707,1719470860056,-3354.31,0.00045205,120]
[330478708,1719470860095,-500.0,0.00045205,120]
[330478709,1719470860136,-895.65,0.00045205,120]
[330478710,1719470860176,-500.0,0.00045205,120]
[330478711,1719470860216,-527.89,0.00045205,120]
[330478712,1719470860256,-1718.6,0.00045205,120]
[330478713,1719470860296,-1546.39,0.00045205,120]
[330478714,1719470860516,-8000.0,0.00045205,120]
[330478715,1719470860558,-1364.94,0.00045205,120]
[330478716,1719470860598,-500.0,0.00045205,120]
[330478717,1719470860638,-670.08,0.00045205,120]
[330478718,1719470860678,-500.0,0.00045205,120]
[330478719,1719470860718,-1410.2,0.00045205,120]
[330478720,1719470860757,-500.0,0.00045205,120]
[330478721,1719470860796,-1064.22,0.00045205,120]
[330478722,1719470860835,-500.0,0.00045205,120]
[330478723,1719470860875,-1334.6,0.00045205,120]
[330478724,1719470860914,-1166.55,0.00045205,120]
[330478725,1719470860955,-3328.04,0.00045205,120]
[330478726,1719470860995,-596.59,0.00045205,120]
[330478727,1719470861034,-500.0,0.00045205,120]
[330478728,1719470861075,-588.26,0.00045205,120]
[330478729,1719470861114,-500.0,0.00045205,120]
[330478730,1719470861153,-1012.16,0.00045205,120]
[330478731,1719470861192,-2162.35,0.00045205,120]
[330478732,1719470861232,-500.0,0.00045205,120]
[330478733,1719470861274,-500.0,0.00045205,120]
[330478734,1719470861314,-663.36,0.00045205,120]
[330478735,1719470861357,-500.0,0.00045205,120]
[330478736,1719470861398,-500.0,0.00045205,120]
[330478737,1719470861438,-2510.32,0.00045205,120]
[330478738,1719470861477,-2869.44,0.00045205,120]
[330478739,1719470861516,-2156.29,0.00045205,120]
[330478740,1719470861555,-1121.61,0.00045205,120]
[330478741,1719470861592,-508.88,0.00045205,120]
[330478742,1719470861630,-377.22016588,0.00045205,120]
[330478743,1719470861666,-500.0,0.00045205,120]
[330478744,1719470861704,-500.0,0.00045205,120]
[330478745,1719470861741,-287.04273911,0.00045205,120]
[330478746,1719470861776,-540.56,0.00045205,120]
[330478747,1719470861813,-3331.06,0.00045205,120]
[330478748,1719470861849,-500.0,0.00045205,120]
[330478749,1719470861886,-500.0,0.00045205,120]
[330478750,1719470861923,-500.0,0.00045205,120]
[330478751,1719470861962,-500.0,0.00045205,120]
[330478752,1719470861999,-1567.88,0.00045205,120]
[330478753,1719470862038,-500.0,0.00045205,120]
[330478754,1719470862079,-2408.61,0.00045205,120]
[330478755,1719470862118,-2738.06,0.00045205,120]
[330478756,1719470862162,-2231.78,0.00045205,120]
[330478757,1719470862201,-500.0,0.00045205,120]
[330478758,1719470862241,-1106.81,0.00045205,120]
[330478759,1719470862283,-500.0,0.00045205,120]
[330478760,1719470862322,-500.0,0.00045205,120]
[330478761,1719470862364,-2138.79,0.00045205,120]
[330478762,1719470862403,-1601.27,0.00045205,120]
[330478763,1719470862445,-555.31,0.00045205,120]
[330478764,1719470862483,-500.0,0.00045205,120]
[330478765,1719470862522,-1209.53,0.00045205,120]
[330478766,1719470862562,-500.0,0.00045205,120]
[330478767,1719470862601,-500.0,0.00045205,120]
[330478768,1719470862639,-500.0,0.00045205,120]
[330478769,1719470862680,-2218.54,0.00045205,120]
[330478770,1719470862719,-500.0,0.00045205,120]
[330478771,1719470862759,-1321.82,0.00045205,120]
[330478772,1719470862795,-9810.1,0.00045205,120]
[330478773,1719470862833,-705.92,0.00045205,120]
[330478774,1719470862870,-1037.45,0.00045205,120]
[330478775,1719470862909,-1219.24,0.00045205,120]
[330478776,1719470862947,-500.0,0.00045205,120]
[330478777,1719470862988,-1389.33,0.00045205,120]
[330478778,1719470863027,-500.0,0.00045205,120]